fUSD/lending_fUSD_20240714
["ID","MTS","AMOUNT","RATE_DAILY","PERIOD"]
[332036172,1720939901684,-500.0,0.00013972,2]
[332036173,1720939901693,-500.0,0.00013972,2]
[332036174,1720939901702,-500.0,0.00013972,2]
[332036175,1720939901711,-500.0,0.00013972,2]
[332036176,1720939901720,-500.0,0.00013972,2]
[332036177,1720939901730,-500.0,0.00013972,2]
[332036178,1720939901739,-890.96,0.00013972,2]
[332036179,1720939901752,-500.0,0.00013972,2]
[332036180,1720939901762,-561.38,0.00013972,2]
[332036181,1720939901771,-500.0,0.00013972,2]
[332036182,1720939901780,-500.0,0.00013972,2]
[332036183,1720939901789,-500.0,0.00013972,2]
[332036184,1720939901799,-500.0,0.00013972,2]
[332036185,1720939901808,-500.0,0.00013972,2]
[332036186,1720939901820,-500.0,0.00013972,2]
[332036187,1720939901831,-847.53,0.00013972,2]
[332036188,1720939901840,-500.0,0.00013972,2]
[332036189,1720939901849,-664.06,0.00013972,2]
[332036190,1720939901859,-500.0,0.00013972,2]
[332036191,1720939901869,-500.0,0.00013972,2]
[332036192,1720939901879,-695.32,0.00013972,2]
[332036193,1720939901890,-713.92,0.00013972,2]
[332036194,1720939901899,-500.0,0.00013972,2]
[332036195,1720939901908,-500.0,0.00013972,2]
[332036196,1720939901918,-961.16,0.00013972,2]
[332036197,1720939901928,-500.0,0.00013972,2]
[332036198,1720939901938,-342.55783542,0.00013972,2]
[332036199,1720939901947,-500.0,0.00013972,2]
[332036200,1720939901956,-500.0,0.00013972,2]
[332036201,1720939901966,-500.0,0.00013972,2]
[332036202,1720939901975,-500.0,0.00013972,2]
[332036203,1720939901984,-733.72,0.00013972,2]
[332036204,1720939901995,-500.0,0.00013972,2]
[332036205,1720939902005,-893.62,0.00013972,2]
[332036206,1720939902014,-728.68,0.00013972,2]
[332036207,1720939902023,-500.0,0.00013972,2]
[332036208,1720939902032,-500.0,0.00013972,2]
[332036209,1720939902042,-681.67,0.00013972,2]
[332036210,1720939902051,-520.27028293,0.00013972,2]
[332036211,1720939902064,-500.0,0.00013972,2]
[332036212,1720939902075,-500.0,0.00013972,2]
[332036213,1720939902087,-500.0,0.00013972,2]
[332036214,1720939902100,-500.0,0.00013972,2]
[332036215,1720939902111,-306.92279979,0.00013972,2]
[332036216,1720939902121,-709.45,0.00013972,2]
[332036217,1720939902133,-648.71,0.00013972,2]
[332036218,1720939902143,-500.0,0.00013972,2]
[332036219,1720939902154,-500.0,0.00013972,2]
[332036220,1720939902164,-500.0,0.00013972,2]
[332036221,1720939902174,-500.0,0.00013972,2]
[332036222,1720939902184,-500.0,0.00013972,2]
[332036223,1720939902194,-332.6382206,0.00013972,2]
[332036224,1720939902204,-1289.21,0.00013972,2]
[332036225,1720939902213,-500.0,0.00013972,2]
[332036226,1720939902223,-500.0,0.00013972,2]
[332036227,1720939902233,-500.0,0.00013972,2]
[332036228,1720939902246,-500.0,0.00013972,2]
[332036229,1720939902255,-616.64,0.00013972,2]
[332036230,1720939902266,-500.0,0.00013972,2]
[332036231,1720939902276,-500.0,0.00013972,2]
[332036232,1720939902286,-500.0,0.00013972,2]
[332036233,1720939902295,-500.0,0.00013972,2]
[332036234,1720939902304,-500.0,0.00013972,2]
[332036235,1720939902315,-500.0,0.00013972,2]
[332036236,1720939902325,-1005.29,0.00013972,2]
[332036237,1720939902335,-500.0,0.00013972,2]
[332036238,1720939902346,-500.0,0.00013972,2]
[332036239,1720939902356,-618.03,0.00013972,2]
[332036240,1720939902365,-500.0,0.00013972,2]
[332036241,1720939902375,-500.0,0.00013972,2]
[332036242,1720939902384,-500.0,0.00013972,2]
[332036243,1720939902393,-500.0,0.00013972,2]
[332036244,1720939902404,-693.63,0.00013972,2]
[332036245,1720939902413,-500.0,0.00013972,2]
[332036246,1720939902423,-690.98,0.00013972,2]
[332036247,1720939902434,-500.0,0.00013972,2]
[332036248,1720939902446,-500.0,0.00013972,2]
[332036249,1720939902458,-500.0,0.00013972,2]
[332036250,1720939902469,-935.62,0.00013972,2]
[332036251,1720939902479,-879.38,0.00013972,2]
[332036252,1720939902488,-697.37,0.00013972,2]
[332036253,1720939902499,-500.0,0.00013972,2]
[332036254,1720939902509,-500.0,0.00013972,2]
[332036255,1720939902518,-500.0,0.00013972,2]
[332036256,1720939902527,-608.73,0.00013972,2]
[332036257,1720939902539,-500.0,0.00013972,2]
[332036258,1720939902548,-866.49,0.00013972,2]
[332036259,1720939902559,-500.0,0.00013972,2]
[332036260,1720939902568,-478.3969384,0.00013972,2]
[332036261,1720939902578,-500.0,0.00013972,2]
[332036262,1720939902588,-741.51,0.00013972,2]
[332036263,1720939902598,-500.0,0.00013972,2]
[332036264,1720939902610,-513.62,0.00013972,2]
[332036265,1720939902620,-500.0,0.00013972,2]
[332036266,1720939902631,-500.0,0.00013972,2]
[332036267,1720939902643,-595.67,0.00013972,2]
[332036268,1720939902652,-500.0,0.00013972,2]
[332036269,1720939902662,-682.34,0.00013972,2]
[332036270,1720939902672,-500.0,0.00013972,2]
[332036271,1720939902682,-500.0,0.00013972,2]
[332036272,1720939902692,-500.0,0.00013972,2]
[332036273,1720939902703,-500.0,0.00013972,2]
[332036274,1720939902713,-500.0,0.00013972,2]
[332036275,1720939902723,-993.65,0.00013972,2]
[332036276,1720939902733,-621.76,0.00013972,2]
[332036277,1720939902743,-500.0,0.00013972,2]
[332036278,1720939902752,-702.32,0.00013972,2]
[332036279,1720939902762,-506.29,0.00013972,2]
[332036280,1720939902770,-500.0,0.00013972,2]
[332036281,1720939902779,-500.0,0.00013972,2]
[332036282,1720939902788,-500.0,0.00013972,2]
[332036283,1720939902797,-989.06,0.00013972,2]
[332036284,1720939902806,-500.0,0.00013972,2]
[332036285,1720939902815,-500.0,0.00013972,2]
[332036286,1720939902824,-1484.95,0.00013972,2]
[332036287,1720939902833,-727.25,0.00013972,2]
[332036288,1720939902842,-500.0,0.00013972,2]
[332036289,1720939902851,-500.0,0.00013972,2]
[332036290,1720939902862,-500.0,0.00013972,2]
[332036291,1720939902873,-516.29,0.00013972,2]
[332036292,1720939902884,-500.0,0.00013972,2]
[332036293,1720939902896,-886.25,0.00013972,2]
[332036294,1720939902906,-500.0,0.00013972,2]
[332036295,1720939902916,-753.18,0.00013972,2]
[332036296,1720939902926,-500.0,0.00013972,2]
[332036297,1720939902934,-500.0,0.00013972,2]
[332036298,1720939902943,-500.0,0.00013972,2]
[332036299,1720939902953,-751.76,0.00013972,2]
[332036300,1720939902962,-500.0,0.00013972,2]
[332036301,1720939902972,-500.0,0.00013972,2]
[332036302,1720939902981,-500.0,0.00013972,2]
[332036303,1720939902990,-1038.6,0.00013972,2]
[332036304,1720939903001,-500.0,0.00013972,2]
[332036305,1720939903010,-807.03,0.00013972,2]
[332036306,1720939903019,-909.51,0.00013972,2]
[332036307,1720939903029,-500.0,0.00013972,2]
[332036308,1720939903038,-500.0,0.00013972,2]
[332036309,1720939903047,-500.0,0.00013972,2]
[332036310,1720939903056,-500.0,0.00013972,2]
[332036311,1720939903065,-500.0,0.00013972,2]
[332036312,1720939903074,-500.0,0.00013972,2]
[332036313,1720939903083,-384.14384135,0.00013972,2]
[332036314,1720939903093,-500.0,0.00013972,2]
[332036315,1720939903103,-500.0,0.00013972,2]
[332036316,1720939903113,-500.0,0.00013972,2]
[332036317,1720939903125,-500.0,0.00013972,2]
[332036318,1720939903134,-841.01,0.00013972,2]
[332036319,1720939903145,-699.75,0.00013972,2]
[332036320,1720939903156,-772.57,0.00013972,2]
[332036321,1720939903167,-500.0,0.00013972,2]
[332036322,1720939903176,-536.61,0.00013972,2]
[332036323,1720939903186,-500.0,0.00013972,2]
[332036324,1720939903195,-538.36,0.00013972,2]
[332036325,1720939903204,-520.61,0.00013972,2]
[332036326,1720939903214,-630.19,0.00013972,2]
[332036327,1720939903224,-500.0,0.00013972,2]
[332036328,1720939903234,-838.79,0.00013972,2]
[332036329,1720939903248,-500.0,0.00013972,2]
[332036330,1720939903257,-512.75,0.00013972,2]
[332036331,1720939903267,-500.0,0.00013972,2]
[332036332,1720939903276,-1190.72,0.00013972,2]
[332036333,1720939903286,-531.12,0.00013972,2]
[332036334,1720939903296,-534.18,0.00013972,2]
[332036335,1720939903306,-500.0,0.00013972,2]
[332036336,1720939903316,-765.65,0.00013972,2]
[332036337,1720939903326,-517.58,0.00013972,2]
[332036338,1720939903335,-500.0,0.00013972,2]
[332036339,1720939903344,-500.0,0.00013972,2]
[332036340,1720939903354,-500.0,0.00013972,2]
[332036341,1720939903363,-500.0,0.00013972,2]
[332036342,1720939903373,-500.0,0.00013972,2]
[332036343,1720939903382,-564.84,0.00013972,2]
[332036344,1720939903392,-500.0,0.00013972,2]
[332036345,1720939903401,-504.84,0.00013972,2]
[332036346,1720939903411,-1034.64,0.00013972,2]
[332036347,1720939903420,-500.0,0.00013972,2]
[332036348,1720939903429,-500.0,0.00013972,2]
[332036349,1720939903439,-500.0,0.00013972,2]
[332036350,1720939903448,-500.0,0.00013972,2]
[332036351,1720939903457,-500.0,0.00013972,2]
[332036352,1720939903466,-503.64,0.00013972,2]
[332036353,1720939903475,-500.0,0.00013972,2]
[332036354,1720939903484,-500.0,0.00013972,2]
[332036355,1720939903493,-500.0,0.00013972,2]
[332036356,1720939903502,-561.31,0.00013972,2]
[332036357,1720939903512,-500.0,0.00013972,2]
[332036358,1720939903521,-581.12,0.00013972,2]
[332036359,1720939903530,-500.0,0.00013972,2]
[332036360,1720939903539,-500.0,0.00013972,2]
[332036361,1720939903549,-500.0,0.00013972,2]
[332036362,1720939903558,-500.0,0.00013972,2]
[332036363,1720939903567,-912.75,0.00013972,2]
[332036364,1720939903576,-1459.97,0.00013972,2]
[332036365,1720939903585,-500.0,0.00013972,2]
[332036366,1720939903594,-500.0,0.00013972,2]
[332036367,1720939903604,-500.0,0.00013972,2]
[332036368,1720939903613,-847.08,0.00013972,2]
[332036369,1720939903622,-500.0,0.00013972,2]
[332036370,1720939903631,-1019.23,0.00013972,2]
[332036371,1720939903641,-415.35969188,0.00013972,2]
[332036372,1720939903650,-730.45,0.00013972,2]
[332036373,1720939903659,-511.63,0.00013972,2]
[332036374,1720939903668,-500.0,0.00013972,2]
[332036375,1720939903678,-500.0,0.00013972,2]
[332036376,1720939903687,-4533.09,0.00013972,2]
[332036377,1720939903696,-823.77,0.00013972,2]
[332036378,1720939903706,-500.0,0.00013972,2]
[332036379,1720939903715,-500.0,0.00013972,2]
[332036380,1720939903725,-500.0,0.00013972,2]
[332036381,1720939903735,-571.87,0.00013972,2]
[332036382,1720939903744,-599.44,0.00013972,2]
[332036383,1720939903754,-823.21,0.00013972,2]
[332036384,1720939903763,-500.0,0.00013972,2]
[332036385,1720939903773,-500.0,0.00013972,2]
[332036386,1720939903782,-4911.47,0.00013972,2]
[332036387,1720939903792,-500.0,0.00013972,2]
[332036388,1720939903801,-1223.5,0.00013972,2]
[332036389,1720939903810,-500.0,0.00013972,2]
[332036390,1720939903819,-500.0,0.00013972,2]
[332036391,1720939903828,-500.0,0.00013972,2]
[332036392,1720939903837,-727.75,0.00013972,2]
[332036393,1720939903847,-644.3376965,0.00013972,2]
[332036394,1720939903856,-500.0,0.00013972,2]
[332036395,1720939903866,-500.0,0.00013972,2]
[332036396,1720939903875,-500.0,0.00013972,2]
[332036397,1720939903884,-500.0,0.00013972,2]
[332036398,1720939903893,-500.0,0.00013972,2]
[332036399,1720939903902,-500.0,0.00013972,2]
[332036400,1720939903915,-500.0,0.00013972,2]
[332036401,1720939903925,-500.0,0.00013972,2]
[332036402,1720939903934,-500.0,0.00013972,2]
[332036403,1720939903943,-500.0,0.00013972,2]
[332036404,1720939903952,-500.0,0.00013972,2]
[332036405,1720939903961,-500.0,0.00013972,2]
[332036406,1720939903971,-500.0,0.00013972,2]
[332036407,1720939903980,-500.0,0.00013972,2]
[332036408,1720939903990,-696.2,0.00013972,2]
[332036409,1720939904000,-500.0,0.00013972,2]
[332036410,1720939904009,-500.0,0.00013972,2]
[332036411,1720939904018,-500.0,0.00013972,2]
[332036412,1720939904027,-500.0,0.00013972,2]
[332036413,1720939904036,-452.04764026,0.00013972,2]
[332036414,1720939904045,-500.0,0.00013972,2]
[332036415,1720939904055,-500.0,0.00013972,2]
[332036416,1720939904064,-500.0,0.00013972,2]
[332036417,1720939904073,-500.0,0.00013972,2]
[332036418,1720939904083,-774.58,0.00013972,2]
[332036419,1720939904092,-500.0,0.00013972,2]
[332036420,1720939904101,-721.14,0.00013972,2]
[332036421,1720939904110,-500.0,0.00013972,2]
[332036422,1720939904120,-500.0,0.00013972,2]
[332036423,1720939904128,-500.0,0.00013972,2]
[332036424,1720939904138,-549.63,0.00013972,2]
[332036425,1720939904147,-617.45,0.00013972,2]
[332036426,1720939904157,-602.57,0.00013972,2]
[332036427,1720939904166,-500.0,0.00013972,2]
[332036428,1720939904338,-645.55,0.00013972,2]
[332036429,1720939904348,-500.0,0.00013972,2]
[332036430,1720939904357,-500.0,0.00013972,2]
[332036431,1720939904367,-770.09,0.00013972,2]
[332036432,1720939904376,-500.0,0.00013972,2]
[332036433,1720939904385,-500.0,0.00013972,2]
[332036434,1720939904394,-583.44,0.00013972,2]
[332036435,1720939904404,-500.0,0.00013972,2]
[332036436,1720939904414,-681.33,0.00013972,2]
[332036437,1720939904423,-500.0,0.00013972,2]
[332036438,1720939904432,-500.0,0.00013972,2]
[332036439,1720939904441,-538.45,0.00013972,2]
[332036440,1720939904450,-500.0,0.00013972,2]
[332036441,1720939904459,-500.0,0.00013972,2]
[332036442,1720939904468,-501.77,0.00013972,2]
[332036443,1720939904478,-500.0,0.00013972,2]
[332036444,1720939904487,-975.03,0.00013972,2]
[332036445,1720939904499,-772.65,0.00013972,2]
[332036446,1720939904508,-542.17,0.00013972,2]
[332036447,1720939904517,-805.22,0.00013972,2]
[332036448,1720939904526,-500.0,0.00013972,2]
[332036449,1720939904535,-500.0,0.00013972,2]
[332036450,1720939904544,-500.0,0.00013972,2]
[332036451,1720939904554,-500.0,0.00013972,2]
[332036452,1720939904564,-500.0,0.00013972,2]
[332036453,1720939904573,-813.22,0.00013972,2]
[332036454,1720939904583,-900.95,0.00013972,2]
[332036455,1720939904592,-500.0,0.00013972,2]
[332036456,1720939904601,-500.0,0.00013972,2]
[332036457,1720939904611,-500.0,0.00013972,2]
[332036458,1720939904620,-500.0,0.00013972,2]
[332036459,1720939904629,-1107.83,0.00013972,2]
[332036460,1720939904638,-500.0,0.00013972,2]
[332036461,1720939904648,-500.0,0.00013972,2]
[332036462,1720939904657,-500.0,0.00013972,2]
[332036463,1720939904666,-500.0,0.00013972,2]
[332036464,1720939904676,-500.0,0.00013972,2]
[332036465,1720939904685,-500.0,0.00013972,2]
[332036466,1720939904694,-500.0,0.00013972,2]
[332036467,1720939904703,-500.0,0.00013972,2]
[332036468,1720939904712,-500.0,0.00013972,2]
[332036469,1720939904721,-500.0,0.00013972,2]
[332036470,1720939904730,-500.0,0.00013972,2]
[332036471,1720939904739,-500.0,0.00013972,2]
[332036472,1720939904750,-500.0,0.00013972,2]
[332036473,1720939904759,-600.41,0.00013972,2]
[332036474,1720939904768,-505.3,0.00013972,2]
[332036475,1720939904778,-500.0,0.00013972,2]
[332036476,1720939904787,-728.77,0.00013972,2]
[332036477,1720939904796,-500.0,0.00013972,2]
[332036478,1720939904806,-500.0,0.00013972,2]
[332036479,1720939904815,-734.59,0.00013972,2]
[332036480,1720939904824,-630.94,0.00013972,2]
[332036481,1720939904834,-500.0,0.00013972,2]
[332036482,1720939904843,-500.0,0.00013972,2]
[332036483,1720939904852,-500.0,0.00013972,2]
[332036484,1720939904861,-529.33,0.00013972,2]
[332036485,1720939904870,-500.0,0.00013972,2]
[332036486,1720939904879,-500.0,0.00013972,2]
[332036487,1720939904888,-1131.39,0.00013972,2]
[332036488,1720939904898,-824.75,0.00013972,2]
[332036489,1720939904907,-500.0,0.00013972,2]
[332036490,1720939904916,-169.73,0.00013972,2]
[332036491,1720939904927,-697.54,0.00013972,2]
[332036492,1720939904938,-640.02,0.00013972,2]
[332036493,1720939904949,-500.0,0.00013972,2]
[332036494,1720939904960,-846.87,0.00013972,2]
[332036495,1720939904970,-500.0,0.00013972,2]
[332036496,1720939904979,-500.0,0.00013972,2]
[332036497,1720939904988,-500.0,0.00013972,2]
[332036498,1720939904998,-500.0,0.00013972,2]
[332036499,1720939905008,-500.0,0.00013972,2]
[332036500,1720939905017,-533.44,0.00013972,2]
[332036501,1720939905026,-500.0,0.00013972,2]
[332036502,1720939905038,-500.0,0.00013972,2]
[332036503,1720939905048,-500.0,0.00013972,2]
[332036504,1720939905057,-500.0,0.00013972,2]
[332036505,1720939905066,-500.0,0.00013972,2]
[332036506,1720939905076,-1262.47,0.00013972,2]
[332036507,1720939905085,-500.0,0.00013972,2]
[332036508,1720939905094,-648.9,0.00013972,2]
[332036509,1720939905103,-500.0,0.00013972,2]
[332036510,1720939905112,-500.0,0.00013972,2]
[332036511,1720939905123,-675.27,0.00013972,2]
[332036512,1720939905132,-500.0,0.00013972,2]
[332036513,1720939905142,-1031.81,0.00013972,2]
[332036514,1720939905151,-500.0,0.00013972,2]
[332036515,1720939905160,-503.38,0.00013972,2]
[332036516,1720939905169,-500.0,0.00013972,2]
[332036517,1720939905178,-974.44,0.00013972,2]
[332036518,1720939905188,-1203.0,0.00013972,2]
[332036519,1720939905197,-526.43,0.00013972,2]
[332036520,1720939905207,-611.34,0.00013972,2]
[332036521,1720939905216,-530.41,0.00013972,2]
[332036522,1720939905225,-709.84,0.00013972,2]
[332036523,1720939905235,-500.0,0.00013972,2]
[332036524,1720939905248,-500.0,0.00013972,2]
[332036525,1720939905258,-810.84,0.00013972,2]
[332036526,1720939905267,-529.53,0.00013972,2]
[332036527,1720939905276,-500.0,0.00013972,2]
[332036528,1720939905286,-516.59,0.00013972,2]
[332036529,1720939905295,-549.47,0.00013972,2]
[332036530,1720939905304,-500.0,0.00013972,2]
[332036531,1720939905315,-500.0,0.00013972,2]
[332036532,1720939905324,-1495.77,0.00013972,2]
[332036533,1720939905333,-500.0,0.00013972,2]
[332036534,1720939905343,-500.0,0.00013972,2]
[332036535,1720939905352,-500.0,0.00013972,2]
[332036536,1720939905361,-661.28,0.00013972,2]
[332036537,1720939905370,-500.0,0.00013972,2]
[332036538,1720939905379,-500.0,0.00013972,2]
[332036539,1720939905388,-500.0,0.00013972,2]
[332036540,1720939905398,-796.47,0.00013972,2]
[332036541,1720939905408,-500.0,0.00013972,2]
[332036542,1720939905417,-500.0,0.00013972,2]
[332036543,1720939905427,-500.0,0.00013972,2]
[332036544,1720939905436,-1345.65,0.00013972,2]
[332036545,1720939905446,-500.0,0.00013972,2]
[332036546,1720939905456,-980.38,0.00013972,2]
[332036547,1720939905466,-1570.51,0.00013972,2]
[332036548,1720939905475,-506.72,0.00013972,2]
[332036549,1720939905485,-500.0,0.00013972,2]
[332036550,1720939905496,-500.0,0.00013972,2]
[332036551,1720939905507,-511.92,0.00013972,2]
[332036552,1720939905520,-500.0,0.00013972,2]
[332036553,1720939905529,-500.0,0.00013972,2]
[332036554,1720939905539,-500.0,0.00013972,2]
[332036555,1720939905548,-517.89669129,0.00013972,2]
[332036556,1720939905558,-649.9,0.00013972,2]
[332036557,1720939905567,-500.0,0.00013972,2]
[332036558,1720939905576,-500.0,0.00013972,2]
[332036559,1720939905585,-847.36,0.00013972,2]
[332036560,1720939905595,-500.0,0.00013972,2]
[332036561,1720939905604,-500.0,0.00013972,2]
[332036562,1720939905614,-500.0,0.00013972,2]
[332036563,1720939905623,-5441.7,0.00013972,2]
[332036564,1720939905632,-500.0,0.00013972,2]
[332036565,1720939905642,-500.0,0.00013972,2]
[332036566,1720939905652,-500.0,0.00013972,2]
[332036567,1720939905661,-500.0,0.00013972,2]
[332036568,1720939905672,-500.0,0.00013972,2]
[332036569,1720939905682,-1680.79,0.00013972,2]
[332036570,1720939905692,-2626.52,0.00013972,2]
[332036571,1720939905702,-500.0,0.00013972,2]
[332036572,1720939905713,-500.0,0.00013972,2]
[332036573,1720939905724,-2143.05,0.00013972,2]
[332036574,1720939905734,-500.0,0.00013972,2]
[332036575,1720939905744,-711.67,0.00013972,2]
[332036576,1720939905754,-1123.05,0.00013972,2]
[332036577,1720939905763,-500.0,0.00013972,2]
[332036578,1720939905772,-500.0,0.00013972,2]
[332036579,1720939905782,-823.32,0.00013972,2]
[332036580,1720939905792,-500.0,0.00013972,2]
[332036581,1720939905801,-591.86,0.00013972,2]
[332036582,1720939905810,-500.0,0.00013972,2]
[332036583,1720939905819,-500.0,0.00013972,2]
[332036584,1720939905828,-738.83,0.00013972,2]
[332036585,1720939905837,-500.0,0.00013972,2]
[332036586,1720939905846,-500.0,0.00013972,2]
[332036587,1720939905855,-2818.62,0.00013972,2]
[332036588,1720939905864,-966.88,0.00013972,2]
[332036589,1720939905874,-500.0,0.00013972,2]
[332036590,1720939905883,-500.0,0.00013972,2]
[332036591,1720939905892,-806.92,0.00013972,2]
[332036592,1720939905901,-668.07,0.00013972,2]
[332036593,1720939905910,-500.0,0.00013972,2]
[332036594,1720939905920,-500.0,0.00013972,2]
[332036595,1720939905931,-500.0,0.00013972,2]
[332036596,1720939905941,-701.44,0.00013972,2]
[332036597,1720939905950,-500.0,0.00013972,2]
[332036598,1720939905960,-500.0,0.00013972,2]
[332036599,1720939905972,-2055.49,0.00013972,2]
[332036600,1720939905983,-500.0,0.00013972,2]
[332036601,1720939905993,-594.67,0.00013972,2]
[332036602,1720939906006,-684.26,0.00013972,2]
[332036603,1720939906017,-692.16,0.00013972,2]
[332036604,1720939906026,-500.0,0.00013972,2]
[332036605,1720939906035,-500.0,0.00013972,2]
[332036606,1720939906044,-500.0,0.00013972,2]
[332036607,1720939906054,-757.65,0.00013972,2]
[332036608,1720939906063,-500.0,0.00013972,2]
[332036609,1720939906072,-500.0,0.00013972,2]
[332036610,1720939906082,-500.0,0.00013972,2]
[332036611,1720939906091,-836.16,0.00013972,2]
[332036612,1720939906100,-659.59,0.00013972,2]
[332036613,1720939906109,-903.47,0.00013972,2]
[332036614,1720939906119,-500.0,0.00013972,2]
[332036615,1720939906128,-500.0,0.00013972,2]
[332036616,1720939906138,-1129.86,0.00013972,2]
[332036617,1720939906147,-753.64,0.00013972,2]
[332036618,1720939906156,-728.14,0.00013972,2]
[332036619,1720939906165,-500.0,0.00013972,2]
[332036620,1720939906174,-500.0,0.00013972,2]
[332036621,1720939906183,-1318.94,0.00013972,2]
[332036622,1720939906192,-500.0,0.00013972,2]
[332036623,1720939906202,-500.0,0.00013972,2]
[332036624,1720939906211,-500.0,0.00013972,2]
[332036625,1720939906220,-617.09,0.00013972,2]
[332036626,1720939906230,-524.43,0.00013972,2]
[332036627,1720939906244,-937.67,0.00013972,2]
[332036628,1720939906255,-604.14,0.00013972,2]
[332036629,1720939906264,-2520.05,0.00013972,2]
[332036630,1720939906274,-565.6,0.00013972,2]
[332036631,1720939906283,-502.52,0.00013972,2]
[332036632,1720939906293,-500.0,0.00013972,2]
[332036633,1720939906302,-640.94,0.00013972,2]
[332036634,1720939906312,-500.0,0.00013972,2]
[332036635,1720939906322,-500.0,0.00013972,2]
[332036636,1720939906332,-521.47,0.00013972,2]
[332036637,1720939906341,-500.0,0.00013972,2]
[332036638,1720939906350,-500.0,0.00013972,2]
[332036639,1720939906359,-500.0,0.00013972,2]
[332036640,1720939906368,-500.0,0.00013972,2]
[332036641,1720939906377,-1136.32,0.00013972,2]
[332036642,1720939906386,-545.4,0.00013972,2]
[332036643,1720939906395,-500.0,0.00013972,2]
[332036644,1720939906405,-500.0,0.00013972,2]
[332036645,1720939906415,-500.0,0.00013972,2]
[332036646,1720939906424,-500.0,0.00013972,2]
[332036647,1720939906434,-927.24,0.00013972,2]
[332036648,1720939906443,-534.21,0.00013972,2]
[332036649,1720939906453,-500.0,0.00013972,2]
[332036650,1720939906462,-500.0,0.00013972,2]
[332036651,1720939906471,-500.0,0.00013972,2]
[332036652,1720939906480,-588.65,0.00013972,2]
[332036653,1720939906490,-788.49,0.00013972,2]
[332036654,1720939906500,-500.0,0.00013972,2]
[332036655,1720939906510,-1952.54,0.00013972,2]
[332036656,1720939906519,-500.0,0.00013972,2]
[332036657,1720939906528,-500.0,0.00013972,2]
[332036658,1720939906537,-500.0,0.00013972,2]
[332036659,1720939906547,-382.3,0.00013972,2]
[332036660,1720939906556,-500.0,0.00013972,2]
[332036661,1720939906566,-949.15,0.00013972,2]
[332036662,1720939906576,-635.96,0.00013972,2]
[332036663,1720939906585,-500.0,0.00013972,2]
[332036664,1720939906595,-500.0,0.00013972,2]
[332036665,1720939906604,-500.0,0.00013972,2]
[332036666,1720939906614,-644.99,0.00013972,2]
[332036667,1720939906623,-500.0,0.00013972,2]
[332036668,1720939906633,-500.0,0.00013972,2]
[332036669,1720939906642,-500.0,0.00013972,2]
[332036670,1720939906651,-500.0,0.00013972,2]
[332036671,1720939906660,-954.02,0.00013972,2]